bitfinex/quotes_ETHUSD_20240824
["timestamp","ask_amount","ask_price","bid_price","bid_amount"]
[1724503756186,3.61968,2762.7,2762.0,7.24098]
[1724503756386,11.06957,2762.8,2762.1,3.62032]
[1724503757489,3.61982,2762.6,2762.1,3.62032]
[1724503757785,0.361982,2762.5,2762.1,3.62032]
[1724503758193,0.361982,2762.5,2762.1,7.24067]
[1724503758352,11.06957,2762.8,2762.2,3.62028]
[1724503758552,14.6892,2762.8,2762.2,3.62028]
[1724503758890,11.06957,2762.8,2762.2,3.62028]
[1724503759277,3.61978,2762.6,2762.0,3.62053]
[1724503759478,3.61978,2762.6,2762.0,3.62047]
[1724503759683,0.361978,2762.5,2762.0,7.24096]
[1724503760239,0.361978,2762.5,2762.0,3.62047]
[1724503761068,11.06957,2762.8,2762.1,3.62035]
[1724503761069,3.61969,2762.7,2762.1,3.62035]
[1724503761279,3.6198,2762.6,2762.0,3.62047]
[1724503761647,3.6198,2762.6,2762.0,7.24096]
[1724503761851,3.62097,2761.7,2760.9,0.1421257]
[1724503762054,3.62097,2761.7,2760.5,2.2969]
[1724503762055,2.835697,2761.6,2760.6,3.62234]
[1724503762253,3.62133,2761.5,2760.8,3.62206]
[1724503762507,3.62132,2761.5,2760.9,3.62198]
[1724503763614,7.24265,2761.5,2760.9,3.62198]
[1724503763825,3.62142,2761.4,2760.8,3.62206]
[1724503763998,3.62157,2761.3,2760.8,3.62204]
[1724503765108,0.971634,2761.4,2760.8,7.2441]
[1724503765308,0.971634,2761.4,2760.9,3.62199]
[1724503765508,4.592994,2761.4,2760.9,3.62199]
[1724503766418,0.971634,2761.4,2761.0,3.62185]
[1724503766621,6.0947,2761.6,2761.0,3.62185]
[1724503767217,3.62097,2761.7,2761.2,3.62154]
[1724503769419,5.99402,2761.9,2761.2,3.62154]
[1724503769420,3.62086,2761.8,2761.2,7.24307]
[1724503769566,0.961488,2761.8,2761.3,3.6214]
[1724503770409,0.961488,2761.8,2761.4,3.62134]
[1724503771107,3.6205,2762.1,2761.4,3.62126]
[1724503771362,3.6205,2762.1,2761.5,3.62114]
[1724503772147,3.62056,2762.0,2761.4,3.62127]
[1724503772744,3.62072,2761.9,2761.4,3.62127]
[1724503773524,3.62072,2761.9,2761.2,3.62151]
[1724503773732,0.362072,2761.8,2761.2,3.62151]
[1724503773936,0.362072,2761.8,2761.2,3.62154]
[1724503774144,3.62048,2762.1,2761.4,3.62127]
[1724503774145,3.62071,2761.9,2761.4,3.62127]
[1724503774558,2.3733,2762.2,2761.7,3.62094]
[1724503774881,5.99361,2762.2,2761.6,7.24199]
[1724503775022,2.3733,2762.2,2761.6,3.62099]
[1724503775218,6.75033278,2762.5,2761.8,3.62074]
[1724503775417,1.14870339,2762.4,2761.9,3.6206]
[1724503775664,1.14870339,2762.4,2761.8,3.62074]
[1724503775665,1.14870339,2762.4,2762.0,3.62053]
[1724503776038,1.14870339,2762.4,2762.0,7.24106]
[1724503776239,1.14870339,2762.4,2762.1,3.62042]
[1724503776813,3.6,2762.6,2762.2,3.62027]
[1724503777116,3.6,2762.6,2762.2,3.62022]
[1724503777434,3.6,2762.6,2762.2,7.24044]
[1724503777636,3.6,2762.6,2762.2,7.24045]
[1724503777820,3.6,2762.6,2762.2,3.62022]
[1724503778014,0.36,2762.5,2762.2,3.62022]
[1724503778823,0.36,2762.5,2762.2,7.24043]
[1724503779066,0.36,2762.5,2762.2,3.62021]
[1724503779623,3.6,2762.6,2762.2,3.62021]
[1724503780472,2.3733,2762.8,2762.4,3.62003]
[1724503782042,3.13036278,2762.8,2762.4,3.62003]
[1724503782264,0.97816048,2762.7,2762.4,3.62003]
[1724503782450,1.44346537,2762.7,2762.4,3.62003]
[1724503782661,0.75706278,2762.8,2762.4,3.62003]
[1724503782867,0.75706278,2762.8,2762.5,3.61981]
[1724503783270,0.75706278,2762.7,2762.6,3.61974]
[1724503783581,1.73568066,2762.7,2762.6,3.61974]
[1724503783746,1.73586805,2762.7,2762.6,3.61974]
[1724503784484,0.97951537,2762.7,2762.6,3.61974]
[1724503784634,0.29217004,2762.7,2762.6,3.61974]
[1724503784842,1.04923282,2762.8,2762.6,3.61974]
[1724503785041,0.29217004,2762.7,2762.6,3.61974]
[1724503785326,1.04923282,2762.7,2762.6,3.61974]
[1724503785483,1.73718299,2762.7,2762.6,3.61974]
[1724503785656,0.98012021,2762.7,2762.6,3.61974]
[1724503786055,0.75706278,2762.8,2762.7,3.61964]
[1724503786234,1.04946118,2762.8,2762.7,3.61964]
[1724503786438,1.73736643,2762.8,2762.7,3.61964]
[1724503787536,1.44496803,2762.8,2762.7,3.61964]
[1724503787777,1.73736643,2762.8,2762.7,3.61964]
[1724503787953,1.73736643,2762.8,2762.7,7.23928]
[1724503788157,0.98030365,2762.8,2762.7,7.23928]
[1724503788381,1.13670115,2762.9,2762.8,3.61951]
[1724503788537,1.42929738,2762.9,2762.8,3.61951]
[1724503788739,0.98099262,2762.9,2762.7,3.61964]
[1724503789084,1.73709124,2762.8,2762.7,3.61964]
[1724503789275,1.44449501,2762.8,2762.7,3.61964]
[1724503789475,1.73709124,2762.8,2762.7,3.61964]
[1724503792132,0.98099262,2762.8,2762.7,7.963221]
[1724503792427,0.75609862,2762.9,2762.8,3.61951]
[1724503792590,1.73682588,2762.9,2762.6,3.61967]
[1724503792825,0.29251301,2762.8,2762.6,3.61967]
[1724503793012,0.75609862,2762.9,2762.6,3.61967]
[1724503793184,1.7368583,2762.8,2762.7,3.61962]
[1724503793379,0.98074096,2762.8,2762.7,3.61962]
[1724503793583,0.98069703,2762.8,2762.7,3.61962]
[1724503794121,1.73679565,2762.8,2762.6,3.61975]
[1724503794278,0.29252158,2762.7,2762.6,3.61975]
[1724503794484,0.75609862,2762.8,2762.6,3.61975]
[1724503794709,0.75609862,2762.8,2762.7,3.61964]
[1724503794921,1.04855963,2762.8,2762.7,3.61964]
[1724503795078,0.75609862,2762.8,2762.6,3.61974]
[1724503795279,1.736633,2762.8,2762.6,3.61974]
[1724503795519,0.75609862,2762.8,2762.6,3.61974]
[1724503796025,1.04852347,2762.8,2762.6,3.61974]
[1724503796200,0.75609862,2762.8,2762.6,3.61974]
[1724503796527,0.75609862,2762.9,2762.6,3.61974]
[1724503796732,1.04849139,2762.9,2762.6,3.61974]
[1724503796886,0.68790938,2762.8,2762.6,3.61974]
[1724503797086,0.75609862,2762.9,2762.6,3.61974]
[1724503797285,1.04848833,2762.9,2762.6,3.61974]
[1724503797533,1.04848833,2762.9,2762.7,3.61964]
[1724503797704,1.04848833,2762.9,2762.7,7.23928]
[1724503797883,1.04848833,2762.9,2762.7,7.2392]
[1724503798083,0.75609862,2762.9,2762.7,7.2392]
[1724503798403,1.04843285,2762.9,2762.7,7.23912]
[1724503799280,1.04843285,2762.9,2762.8,3.61951]
[1724503799711,0.98002007,2762.9,2762.8,3.61951]
[1724503799927,1.44378446,2762.9,2762.8,3.61951]
[1724503800078,1.44378446,2762.9,2762.8,7.23902]
[1724503800283,0.75609862,2763.0,2762.9,3.61938]
[1724503800597,1.5096022,2763.0,2762.9,3.61938]
[1724503800786,1.34670278,2763.0,2762.9,3.61938]
[1724503801584,1.34655542,2763.0,2762.9,3.61938]
[1724503801819,1.50940268,2763.0,2762.9,7.23876]
[1724503802007,0.75330406,2763.0,2762.9,3.61938]
[1724503802405,0.16285391,2763.0,2762.9,3.61938]
[1724503802707,0.91895253,2763.1,2762.9,3.61938]
[1724503803115,0.59038818,2763.0,2762.9,3.61938]
[1724503803433,0.59038818,2763.0,2762.8,3.61951]
[1724503803434,0.75609862,2763.0,2762.8,3.61949]
[1724503803735,1.50929273,2763.0,2762.8,3.61949]
[1724503803941,0.91895253,2763.0,2762.8,3.61945]
[1724503804084,0.16285391,2762.9,2762.8,3.61945]
[1724503804505,0.91899837,2763.0,2762.9,3.61938]
[1724503804850,1.50956069,2763.0,2762.9,3.61938]
[1724503805028,0.59056796,2763.0,2762.9,3.61938]
[1724503805831,0.16289411,2763.0,2762.9,3.61938]
[1724503805990,0.91899273,2763.1,2762.9,3.61938]
[1724503806189,0.16287009,2763.0,2762.9,3.61938]
[1724503806386,0.91896871,2763.1,2762.9,3.61938]
[1724503806584,0.16287009,2763.0,2762.9,3.61938]
[1724503807082,0.91896871,2763.1,2762.9,3.61938]
[1724503807313,0.16287009,2763.0,2762.9,3.61938]
[1724503807512,0.7532943,2763.0,2762.9,3.61938]
[1724503808329,0.16287009,2763.0,2762.9,3.61938]
[1724503808532,0.5904723,2763.0,2762.9,3.61938]
[1724503808683,0.16287009,2763.0,2762.9,3.61938]
[1724503808886,0.75609862,2763.1,2762.9,3.61938]
[1724503808887,0.91896871,2763.1,2762.9,3.61938]
[1724503809122,1.50942069,2763.0,2762.9,3.61938]
[1724503809335,1.3465506,2763.0,2762.9,3.61938]
[1724503809683,1.50942069,2763.0,2762.9,3.61938]
[1724503810345,1.3465506,2763.0,2762.9,3.61938]
[1724503810632,0.75609862,2763.0,2762.9,3.61938]
[1724503811034,1.50942069,2763.0,2762.9,3.61938]
[1724503811741,0.75332207,2763.0,2762.9,3.61938]
[1724503812389,1.89002322,2763.0,2762.7,3.61957]
[1724503812589,1.50917904,2762.9,2762.8,3.61951]
[1724503812827,1.50917904,2762.9,2762.7,3.61957]
[1724503813187,1.50917904,2762.9,2762.7,3.61956]
[1724503813391,1.50917904,2762.8,2762.7,3.61956]
[1724503813690,0.75585697,2762.8,2762.7,3.61956]
[1724503813889,0.91872706,2762.8,2762.7,3.61956]
[1724503814131,0.91872706,2762.8,2762.7,7.2392]
[1724503814319,0.16287009,2762.8,2762.7,7.963137]
[1724503814517,1.50917904,2762.8,2762.7,7.963137]
[1724503815430,0.75332207,2762.8,2762.7,7.963137]
[1724503816468,1.89002322,2762.8,2762.7,7.963137]
[1724503818568,1.69822099,2762.8,2762.7,7.2392]
[1724503819272,1.89058558,2762.8,2762.7,7.2392]
[1724503819572,3.21508655,2762.8,2762.7,7.2392]
[1724503819763,2.27019302,2762.8,2762.7,7.2392]
[1724503819970,3.21508655,2762.8,2762.7,7.2392]
[1724503820126,2.27019302,2762.8,2762.7,8.33290222]
[1724503820322,3.21508655,2762.8,2762.7,8.33290222]
[1724503820526,3.21840333,2762.8,2762.7,8.33290222]
[1724503821257,3.21875142,2762.8,2762.7,8.33290222]
[1724503821441,1.70188047,2762.8,2762.7,8.33290222]
[1724503822376,3.22005192,2762.8,2762.7,8.33290222]
[1724503825488,3.22073724,2762.8,2762.7,8.33290222]
[1724503826383,1.70256579,2762.8,2762.7,8.33290222]
[1724503827443,3.60146072,2762.8,2762.7,8.33290222]
[1724503828494,3.60146072,2762.8,2762.7,11.95254222]
[1724503828495,5.12135809,2762.8,2762.7,11.95254222]
[1724503828839,3.22246316,2762.8,2762.7,11.95254222]
[1724503829371,1.89768065,2762.8,2762.7,11.95254222]
[1724503829579,1.70497682,2762.8,2762.7,11.95254222]
[1724503830086,1.89786291,2762.8,2762.7,14.95254222]
[1724503830286,1.89667883,2762.8,2762.7,14.95254222]
[1724503830523,1.51651733,2762.8,2762.7,14.95254222]
[1724503831498,1.89641557,2762.8,2762.7,14.95254222]
[1724503834331,0.75648818,2762.8,2762.7,14.95254222]
[1724503834841,1.13992739,2762.9,2762.8,7.23902]
[1724503835041,1.89605901,2762.9,2762.8,9.10403044]
[1724503838012,1.89605901,2762.9,2762.8,10.37325259]
[1724503839561,1.89605901,2762.9,2762.8,13.99276259]
[1724503839763,0.75582405,2762.9,2762.8,13.99276259]
[1724503840138,1.89575144,2762.9,2762.8,13.99276259]
[1724503840339,0.75582405,2762.9,2762.8,13.99276259]
[1724503840532,1.89575144,2762.9,2762.8,13.99276259]
[1724503841878,0.75582405,2762.9,2762.8,13.99276259]
[1724503842539,1.13992739,2763.0,2762.9,7.23876]
[1724503842859,1.70148491,2763.0,2762.9,9.04738048]
[1724503843575,1.70147005,2763.0,2762.9,9.04738048]
[1724503844530,1.70144815,2763.0,2762.9,9.04738048]
[1724503844762,3.22134552,2763.0,2762.9,7.23876]
[1724503845464,3.22139453,2763.0,2762.9,7.23876]
[1724503846228,1.70149716,2763.0,2762.9,7.23876]
[1724503847191,3.22139453,2763.0,2762.9,7.23876]
[1724503847521,5.86508538,2763.0,2762.8,3.6195]
[1724503847685,3.59998538,2762.9,2762.8,3.6195]
[1724503847883,3.59998538,2762.9,2762.7,3.61955]
[1724503848115,1.70149716,2762.8,2762.7,3.61955]
[1724503848281,3.59998538,2762.8,2762.7,3.61955]
[1724503852111,3.59848593,2762.8,2762.7,3.61955]
[1724503852329,3.59723261,2762.8,2762.7,3.61955]
[1724503853145,1.69848793,2762.8,2762.7,3.61955]
[1724503854312,1.69850194,2762.8,2762.7,3.61955]
[1724503856314,1.69850194,2762.8,2762.4,3.61995]
[1724503856315,3.96360194,2762.8,2762.4,3.61995]
[1724503856509,1.89875714,2762.5,2762.4,3.61995]
[1724503856855,1.89875714,2762.5,2762.2,4.91876304]
[1724503856856,2.2651,2762.4,2762.1,3.62036]
[1724503857055,1.51913773,2762.2,2762.1,3.62036]
[1724503857208,3.21763967,2762.2,2762.1,3.62036]
[1724503857719,1.69850194,2762.2,2762.1,3.62036]
[1724503858439,3.21692133,2762.2,2762.1,3.62036]
[1724503858943,3.21692133,2762.2,2762.1,7.24079]
[1724503859256,1.89137383,2762.2,2762.1,9.23409115]
[1724503861259,0.75262472,2762.2,2762.1,9.23409115]
[1724503863129,1.51143186,2762.2,2762.1,9.23409115]
[1724503863764,1.51099056,2762.2,2762.1,9.23409115]
[1724503865298,1.35006669,2762.2,2762.1,9.23409115]
[1724503865862,1.35006669,2762.2,2762.1,7.964869]
[1724503866056,1.35006669,2762.2,2762.1,7.24079]
[1724503867386,1.21497709,2762.2,2762.1,7.24079]
[1724503870297,1.13874911,2762.3,2762.2,7.2406]
[1724503870298,0.75880714,2762.3,2762.2,7.2406]
[1724503870456,1.13874911,2762.4,2762.3,7.24034]
[1724503870457,0.75880714,2762.4,2762.3,7.24034]
[1724503870639,1.21475674,2762.4,2762.3,8.688434]
[1724503870842,1.13874911,2762.6,2762.3,8.688434]
[1724503870843,0.75880714,2762.5,2762.4,7.24008]
[1724503871193,1.21473468,2762.5,2762.4,7.24008]
[1724503871364,0.75880714,2762.7,2762.6,7.23954]
[1724503871552,1.21466238,2762.7,2762.6,7.23954]
[1724503872049,1.21466238,2762.7,2762.4,1.26922215]
[1724503872050,1.21468036,2762.7,2762.5,3.61989]
[1724503872246,0.45587322,2762.6,2762.5,3.61989]
[1724503872897,1.59462233,2762.6,2762.5,3.61989]
[1724503873057,1.59470607,2762.6,2762.5,3.61989]
[1724503874796,0.45595696,2762.6,2762.5,3.61989]
[1724503875102,1.21415591,2762.6,2762.5,7.23979]
[1724503875641,0.45595696,2762.6,2762.5,7.23979]
[1724503875747,0.45595696,2762.6,2762.5,7.963769]
[1724503875748,1.21417742,2762.6,2762.5,7.963769]
[1724503876907,0.75822046,2762.8,2762.6,3.61977]
[1724503877098,0.75822046,2762.8,2762.6,4.88899215]
[1724503877470,0.75822046,2762.8,2762.7,7.23928]
[1724503877798,0.75822046,2762.9,2762.8,7.23902]
[1724503877954,1.21407337,2762.9,2762.8,7.23902]
[1724503878757,0.75822046,2763.0,2762.9,7.23876]
[1724503878960,1.21403783,2763.0,2762.9,7.23876]
[1724503881609,1.21396303,2763.0,2762.9,7.23876]
[1724503881914,1.21396303,2763.0,2762.9,8.80953173]
[1724503882298,0.45574257,2763.0,2762.9,8.80953173]
[1724503882683,0.75822046,2763.1,2763.0,7.2385]
[1724503882999,1.21395255,2763.1,2763.0,7.2385]
[1724503886672,0.75822046,2763.2,2763.0,12.12697215]
[1724503886996,0.75822046,2763.3,2763.2,7.23798]
[1724503887177,0.45560624,2763.3,2763.2,8.50720215]
[1724503887357,0.75822046,2763.4,2763.3,7.23772]
[1724503887687,1.13874911,2763.6,2763.4,7.23746]
[1724503887853,1.13874911,2763.6,2763.5,7.23718]
[1724503888059,1.59425586,2763.6,2763.5,7.23718]
[1724503888451,1.21328966,2763.6,2763.5,7.23718]
[1724503888656,1.21328966,2763.6,2763.5,7.960898]
[1724503889555,1.13874911,2763.8,2763.7,3.61833]
[1724503889761,2.79638137,2763.8,2763.7,3.61833]
[1724503890055,1.27796198,2763.8,2763.7,3.61833]
[1724503890559,0.4554636,2763.8,2763.7,3.61833]
[1724503890757,1.27770355,2763.8,2763.7,3.61833]
[1724503890960,1.59159551,2763.8,2763.7,3.61833]
[1724503891370,0.45537504,2763.8,2763.7,11.2891948]
[1724503891543,0.75729267,2763.9,2763.8,7.2364]
[1724503891740,0.75729267,2764.0,2763.9,7.23614]
[1724503891991,1.21245525,2764.0,2763.9,7.23614]
[1724503892292,0.75729267,2764.1,2764.0,7.23588]
[1724503892493,0.75729267,2764.1,2764.0,3.61794]
[1724503892494,1.21222917,2764.1,2764.0,3.61794]
[1724503892846,0.4549365,2764.1,2764.0,3.61794]
[1724503893048,1.21185073,2764.1,2764.0,3.61794]
[1724503894649,0.75691423,2764.2,2764.1,3.61781]
[1724503894863,1.21157141,2764.2,2764.1,3.61781]
[1724503895160,0.75691423,2764.3,2764.2,3.61768]
[1724503895594,1.21139796,2764.3,2764.2,3.61768]
[1724503895993,0.75691423,2764.4,2764.2,3.61768]
[1724503897092,0.75691423,2764.5,2764.2,3.61768]
[1724503897296,2.4552,2764.4,2763.7,0.4342048]
[1724503897599,2.4552,2764.0,2763.7,3.61831]
[1724503897770,0.75691423,2764.3,2764.1,3.61781]
[1724503898099,0.75691423,2764.4,2764.1,7.23554]
[1724503898251,0.75691423,2764.4,2764.1,3.61773]
[1724503899352,0.75691423,2764.4,2763.9,3.61794]
[1724503899883,0.75691423,2764.4,2764.0,3.61786]
[1724503900898,0.75691423,2764.4,2764.1,3.61778]
[1724503901080,3.21211423,2764.5,2764.3,3.61754]
[1724503901286,2.4552,2764.5,2764.3,3.61754]
[1724503904800,2.4552,2764.5,2764.1,3.61772]
[1724503905108,3.21211423,2764.5,2764.1,3.61772]
[1724503905277,4.88693215,2764.2,2763.7,3.61827]
[1724503905475,4.88693215,2764.2,2763.7,3.61826]
[1724503905693,5.64384638,2764.2,2763.7,7.23651]
[1724503906003,4.88693215,2764.2,2763.7,7.2365]
[1724503906377,1.26922215,2764.2,2763.8,3.61818]
[1724503906759,3.08961423,2764.3,2763.9,3.61797]
[1724503906960,2.3327,2764.3,2763.9,3.61797]
[1724503907160,3.08961423,2764.3,2763.9,7.23598]
[1724503907661,2.3327,2764.3,2764.0,3.61793]
[1724503909874,0.75691423,2764.4,2764.2,3.61767]
[1724503910487,0.75691423,2764.5,2764.2,3.61767]
[1724503910886,0.75691423,2764.5,2764.3,3.61753]
[1724503911273,3.06321423,2764.6,2764.3,3.61753]
[1724503911608,1.20752987,2764.5,2764.3,3.61753]
[1724503911909,0.75691423,2764.5,2764.3,3.61753]
[1724503913264,0.45079238,2764.4,2764.3,3.61753]
[1724503913502,0.75691423,2764.5,2764.3,3.61753]
[1724503914214,1.20770742,2764.4,2764.3,3.61753]
[1724503914717,1.20781065,2764.4,2764.3,3.61753]
[1724503914898,0.45089642,2764.4,2764.3,3.61753]
[1724503915064,1.20781065,2764.4,2764.3,3.61753]
[1724503915896,0.75691423,2764.6,2764.4,3.61742]
[1724503916078,0.75691423,2764.6,2764.4,3.68976064]
[1724503916283,0.75691423,2764.7,2764.5,3.61729]
[1724503917404,1.13622047,2764.8,2764.6,3.61715]
[1724503917405,0.75691423,2764.8,2764.6,3.61715]
[1724503917605,0.75691423,2764.8,2764.7,3.61702]
[1724503917770,0.45098689,2764.8,2764.7,3.61702]
[1724503917973,1.20790112,2764.8,2764.7,3.61702]
[1724503918370,0.45098689,2764.8,2764.7,3.61702]
[1724503918665,0.75691423,2764.8,2764.6,4.340593]
[1724503919115,0.75691423,2764.8,2764.6,3.61715]
[1724503919782,0.75691423,2764.8,2764.6,7.23424]
[1724503919988,0.75691423,2764.8,2764.6,7.23417]
[1724503920288,0.75691423,2764.8,2764.6,3.61708]
[1724503920479,0.75691423,2764.7,2764.6,3.61708]
[1724503920672,0.75691423,2764.7,2764.6,4.340521]
[1724503920880,1.20808493,2764.7,2764.6,4.340521]
[1724503922223,1.20808493,2764.7,2764.6,3.61708]
[1724503922429,1.20808493,2764.7,2764.4,3.61732]
[1724503922618,0.75691423,2764.7,2764.5,3.61727]
[1724503922826,1.2082915,2764.6,2764.5,3.61727]
[1724503922997,1.2082915,2764.6,2764.4,3.61732]
[1724503923201,1.20841326,2764.5,2764.4,3.61732]
[1724503925092,1.20841326,2764.5,2764.2,3.61761]
[1724503925287,0.75691423,2764.5,2764.3,3.61752]
[1724503925518,0.75691423,2764.5,2764.2,1.66683522]
[1724503925723,0.75691423,2764.3,2764.1,3.61769]
[1724503925941,1.20858602,2764.3,2764.1,3.61769]
[1724503926140,1.20858602,2764.2,2764.1,3.61769]
[1724503927122,0.45167179,2764.2,2764.1,3.61769]
[1724503927326,1.58789226,2764.2,2764.1,3.61769]
[1724503927510,0.4519552,2764.2,2764.1,3.61769]
[1724503928250,1.58817567,2764.2,2764.1,3.61769]
[1724503930347,1.58817567,2764.2,2764.1,8.331421]
[1724503930512,1.20989696,2764.2,2764.1,8.331421]
[1724503932256,0.75794176,2764.2,2764.1,8.331421]
[1724503932569,0.44919187,2764.2,2764.1,8.331421]
[1724503932718,0.44919187,2764.2,2764.1,4.713611]
[1724503932921,2.78512235,2764.2,2764.1,3.61769]
[1724503933137,3.16279053,2764.2,2764.1,3.61769]
[1724503934052,1.26670296,2764.2,2764.1,3.61769]
[1724503934226,3.16279053,2764.2,2764.1,3.61769]
[1724503935159,1.26670296,2764.2,2764.1,3.61769]
[1724503935505,3.16393899,2764.2,2764.1,3.61769]
[1724503936372,3.16393899,2764.2,2763.9,3.61799]
[1724503936538,3.16393899,2764.1,2763.9,3.61799]
[1724503936721,3.16393899,2764.0,2763.7,3.61824]
[1724503936918,2.78480822,2763.9,2763.7,3.61824]
[1724503937275,3.16526517,2763.8,2763.6,6.61844]
[1724503937472,2.78567822,2763.7,2763.6,3.0]
[1724503937654,1.2672386,2763.7,2763.5,3.61851]
[1724503937850,1.2672386,2763.7,2763.3,3.6188]
[1724503937851,3.16526517,2763.6,2763.4,3.61872]
[1724503938060,2.78564067,2763.5,2763.4,4.642472]
[1724503938252,2.78564067,2763.5,2763.4,7.642472]
[1724503938634,0.44980275,2763.5,2763.4,7.642472]
[1724503939368,1.58812281,2763.5,2763.4,7.642472]
[1724503939536,1.58812281,2763.5,2763.4,11.261202]
[1724503940305,1.52935297,2763.5,2763.4,11.261202]
[1724503940856,0.39103291,2763.5,2763.4,11.261202]
[1724503941053,1.14976084,2763.5,2763.4,13.735302]
[1724503941290,1.14976084,2763.5,2763.4,11.261202]
[1724503941504,0.39103291,2763.5,2763.4,11.261202]
[1724503941848,1.52935297,2763.5,2763.4,11.261202]
[1724503942078,0.39103291,2763.5,2763.4,11.261202]
[1724503943611,0.75856922,2763.6,2763.5,7.23718]
[1724503943771,1.14906049,2763.6,2763.5,8.3632732]
[1724503944253,1.14894825,2763.6,2763.5,8.3632732]
[1724503944458,0.39049127,2763.6,2763.5,8.3632732]
[1724503944774,1.52881133,2763.6,2763.5,8.3632732]
[1724503946379,1.14884079,2763.6,2763.5,8.3632732]
[1724503949263,0.39049127,2763.6,2763.5,8.3632732]
[1724503950375,1.14866966,2763.6,2763.5,8.3632732]
[1724503951739,0.93856426,2763.6,2763.5,8.3632732]
[1724503953441,1.13832006,2763.7,2763.5,8.3632732]
[1724503953442,0.75817839,2763.7,2763.6,3.61846]
[1724503953622,0.93851516,2763.7,2763.6,8.71827952]
[1724503956426,0.75817839,2763.8,2763.6,1.48135952]
[1724503956624,0.75817839,2763.8,2763.7,9.0225888]
[1724503956848,0.75817839,2763.9,2763.8,7.2364]
[1724503957159,0.93843049,2763.9,2763.8,7.2364]
[1724503959076,0.1802521,2763.9,2763.7,3.61833]
[1724503959282,0.93820386,2763.8,2763.7,3.61833]
[1724503959705,0.1802521,2763.8,2763.7,3.61833]
[1724503960108,0.93823911,2763.8,2763.7,3.61833]
[1724503961394,0.93826367,2763.8,2763.7,3.61833]
[1724503962314,1.31859672,2763.8,2763.7,3.61833]
[1724503963027,1.31866772,2763.8,2763.6,3.61844]
[1724503963169,1.31866772,2763.7,2763.6,3.61844]
[1724503964120,0.18034766,2763.7,2763.6,3.61844]
[1724503965513,0.18034766,2763.7,2763.6,7.2369]
[1724503965697,1.31866772,2763.7,2763.6,7.2369]
[1724503966258,1.31873946,2763.7,2763.6,7.2369]
[1724503966905,1.31873946,2763.7,2763.6,3.61844]
[1724503967931,2.27739702,2763.7,2763.6,3.61844]
[1724503968156,0.75899495,2763.7,2763.6,3.61844]
[1724503968320,2.27739702,2763.7,2763.6,3.61844]
[1724503968645,0.75899495,2763.7,2763.6,3.61844]
[1724503969404,2.27739702,2763.7,2763.6,3.61844]
[1724503970476,1.3186961,2763.7,2763.6,7.2369]
[1724503970627,1.3186961,2763.7,2763.6,8.38741935]
[1724503971271,1.3186961,2763.7,2761.6,1.32321476]
[1724503971272,2.2502,2762.5,2761.6,1.32321476]
[1724503971492,3.61923,2763.1,2761.3,4.8897235]
[1724503971493,3.00886153,2762.0,2761.3,4.8897235]
[1724503971640,3.00886153,2762.0,2761.3,8.5111035]
[1724503971641,0.75866153,2761.7,2761.3,8.5111035]
[1724503971843,0.93908093,2761.6,2761.4,4.47238035]
[1724503972159,0.58981328,2761.5,2761.4,4.47238035]
[1724503972384,1.13802434,2761.6,2761.4,4.47238035]
[1724503972385,0.75777168,2761.6,2761.4,4.47238035]
[1724503972584,0.75777168,2761.7,2761.4,4.47238035]
[1724503972723,1.94313195,2761.6,2761.5,4.43059604]
[1724503972923,1.51725604,2761.9,2761.8,3.62082]
[1724503972924,0.75777168,2761.9,2761.8,3.62082]
[1724503973274,0.40873549,2761.9,2761.8,7.24164]
[1724503973615,0.75777168,2762.1,2761.9,3.62069]
[1724503973728,0.4084352,2762.0,2761.9,3.62069]
[1724503974470,1.13802434,2762.3,2761.9,3.62069]
[1724503974471,0.75777168,2762.3,2762.0,3.62056]
[1724503974683,1.16595247,2762.3,2762.0,3.62056]
[1724503975473,0.75777168,2762.3,2762.0,3.62056]
[1724503976430,0.75777168,2762.4,2762.0,3.62056]
[1724503976658,1.94043624,2762.4,2762.0,3.62056]
[1724503976970,0.40787107,2762.3,2762.0,3.62056]
[1724503977184,0.75777168,2762.4,2762.0,3.62056]
[1724503977489,1.94040791,2762.4,2762.0,3.62056]
[1724503977648,0.75777168,2762.4,2762.2,3.62029]
[1724503977976,1.94014424,2762.4,2762.2,3.62029]
[1724503978186,0.75777168,2762.4,2762.3,3.62017]
[1724503978478,2.4397796,2762.4,2761.2,3.62161]
[1724503978633,2.2502,2761.7,2761.2,3.62161]
[1724503978829,5.87118,2761.7,2761.2,3.62161]
[1724503979074,6.62895168,2761.7,2761.2,3.62161]
[1724503979278,0.40755199,2761.6,2761.2,3.62161]
[1724503979574,5.87118,2761.7,2761.2,3.62161]
[1724503983374,2.2502,2761.7,2761.2,3.62161]
[1724503983962,2.2502,2761.7,2761.2,7.24313]
[1724503984305,2.2502,2761.7,2761.2,3.62152]
[1724503987155,2.2502,2761.7,2761.1,3.62169]
[1724503987760,2.2502,2761.7,2761.3,3.62147]
[1724503993625,2.2502,2761.7,2761.3,3.62139]
[1724503997952,2.2502,2761.7,2761.3,7.2428]
[1724503998158,2.2502,2761.7,2761.3,3.62139]
[1724503998816,2.2502,2761.7,2761.3,7.24279]
[1724503999020,2.2502,2761.7,2761.3,3.62139]
[1724503999350,0.587105,2761.6,2761.3,3.62139]
[1724503999559,2.2502,2761.7,2761.3,3.62139]
[1724504000382,2.2502,2761.7,2761.3,7.24276]
[1724504001032,2.2502,2761.7,2761.3,3.62137]
[1724504002597,1.2708598,2761.6,2761.3,3.62137]
[1724504003545,2.2502,2761.7,2761.3,3.62137]
[1724504003762,4.75797434,2762.5,2761.3,3.62137]
[1724504003763,2.2952,2762.2,2762.1,3.62043]
[1724504003965,2.2952,2762.6,2762.2,3.6202]
[1724504004916,2.2952,2762.6,2762.3,3.62012]
[1724504005123,1.2708598,2762.8,2762.3,3.62012]
[1724504005298,0.48902898,2762.7,2762.3,3.62012]
[1724504006315,0.48902898,2762.7,2762.3,3.62009]
[1724504006484,2.2952,2763.0,2762.3,3.62009]
[1724504006684,3.61938,2762.9,2762.3,3.62007]
[1724504006985,7.23885,2762.9,2762.3,3.62007]
[1724504007215,3.61938,2762.9,2762.3,3.62007]
[1724504007379,4.28661517,2762.9,2762.3,3.62007]
[1724504007961,7.90610517,2762.9,2762.3,3.62007]
[1724504008163,7.90610517,2762.9,2762.0,2.4854]